[Event "RUS-chT Rapid Men 2018"]
[Site "Sochi"]
[Date "2018.10.08"]
[Round "2"]
[White "Usmanov, Vasily"]
[Black "Savitskiy, Sergey"]
[Result "1-0"]
[ECO "A45"]
[WhiteElo "2453"]
[BlackElo "2413"]
[Annotator "RC"]
[PlyCount "69"]
[EventDate "2018.10.05"]
[EventType "swiss"]
[EventCountry "RUS"]
[SourceTitle "playchess.com"]
[Source "ChessBase"]
[SourceQuality "1"]
[TimeControl "900+10"]

1. d4 {[%emt 0:00:00]} Nf6 {[%emt 0:00:00]} 2. Bg5 {[%emt 0:00:00]} Ne4 {[%emt 0:01:15]} 3. Bf4 {[%emt 0:00:00]} c5 {[%emt 0:00:02]} 4. f3 {[%emt 0:00:06]} Nf6 {[%emt 0:00:02]} 5. d5 {[%emt 0:01:09]} g6 {[%emt 0:02:11]} 6. e4 {[%emt 0:00:31]} Bg7 {[%emt 0:00:01]} 7. Nc3 {[%emt 0:00:19]} O-O {[%emt 0:00:29]} 8. Qd2 {[%emt 0:02:10]} d6 {[%emt 0:01:48]} 9. g4 {[%emt 0:00:28]} a6 {[%emt 0:01:29]} 10. h4 {[%emt 0:00:17]} h5 {[%emt 0:00:16]} 11. g5 {[%emt 0:00:51]} Ne8 {[%emt 0:00:19]} 12. Bh3 {[%emt 0:01:44]} Nd7 {[%emt 0:00:15]} 13. Bxd7 {[%emt 0:02:00]} Bxd7 {[%emt 0:00:03]} 14. Nge2 {[%emt 0:00:01]} b5 {[%emt 0:00:08]} 15. O-O {[%emt 0:00:04]} b4 {[%emt 0:00:20]} 16. Nd1 {[%emt 0:00:02]} a5 {[%emt 0:00:01]} 17. c4 {[%emt 0:00:20]} bxc3 {[%emt 0:00:16]} 18. bxc3 {[%emt 0:00:32]} Nc7 {[%emt 0:02:55]} 19. a4 {[%emt 0:00:31]} c4 {[%emt 0:01:07]} 20. Nb2 {[%emt 0:02:11]} Na6 {[%emt 0:00:27]} 21. Be3 {[%emt 0:00:43]} Qc8 {[%emt 0:00:29]} 22. Nd4 {[%emt 0:00:11]} Nc5 {[%emt 0:00:46]} 23. Qe2 {[%emt 0:00:04]} Qa6 {[%emt 0:01:32]} 24. Qxc4 {[%emt 0:00:13]} Rfb8 {[%emt 0:00:39]} 25. Rf2 {[%emt 0:01:58]} Qxc4 {[%emt 0:00:18]} 26. Nxc4 {[%emt 0:00:01]} Nxa4 {[%emt 0:00:02]} 27. Nc6 {[%emt 0:00:12]} Bxc6 {[%emt 0:01:28]} 28. dxc6 {[%emt 0:00:01]} Nxc3 {[%emt 0:00:01]} 29. c7 {[%emt 0:00:20]} Rb7 {[%emt 0:00:53]} 30. Nb6 {[%emt 0:00:30]} Rxb6 {[%emt 0:00:01]} 31. Bxb6 {[%emt 0:00:01]} a4 {[%emt 0:00:03]} 32. Rc2 {[%emt 0:00:11]} Rc8 {[%emt 0:00:27]} 33. Ra3 {[%emt 0:00:23]} Nb5 {[%emt 0:00:16]} 34. Rxa4 {[%emt 0:00:03]} Kf8 {[%emt 0:00:00]} 35. Ra8 {[%emt 0:00:28]} 1-0

[Event "RUS-chT Rapid Men 2018"]
[Site "Sochi"]
[Date "2018.10.08"]
[Round "2"]
[White "Gogolev, Artem"]
[Black "Antipov, Mikhail Al."]
[Result "0-1"]
[ECO "D10"]
[WhiteElo "2389"]
[BlackElo "2593"]
[Annotator "ChessBase"]
[PlyCount "68"]
[EventDate "2018.10.05"]
[EventType "swiss"]
[EventCountry "RUS"]
[SourceTitle "playchess.com"]
[Source "ChessBase"]
[SourceQuality "1"]
[TimeControl "900+10"]

1. c4 {[%emt 0:00:00]} c6 {[%emt 0:00:00]} 2. d4 {[%emt 0:00:00]} d5 {[%emt 0:00:00]} 3. cxd5 {[%emt 0:00:00]} cxd5 {[%emt 0:00:00]} 4. Nc3 {[%emt 0:00:00]} Nf6 {[%emt 0:00:00]} 5. Bf4 {[%emt 0:00:01]} Nc6 {[%emt 0:00:00]} 6. e3 {[%emt 0:00:07]} a6 {[%emt 0:00:00]} 7. Bd3 {[%emt 0:00:12]} Bg4 {[%emt 0:00:00]} 8. Nge2 {[%emt 0:00:18]} e6 {[%emt 0:00:00]} 9. O-O {[%emt 0:00:04]} Bd6 {[%emt 0:00:01]} 10. Bxd6 {[%emt 0:00:39]} Bxe2 {[%emt 0:00:02]} 11. Qxe2 {[%emt 0:00:06]} Qxd6 {[%emt 0:00:01]} 12. Na4 {[%emt 0:00:21]} Nd7 {[%emt 0:00:12]} 13. Rac1 {[%emt 0:00:08]} O-O {[%emt 0:00:05]} 14. Nc5 {[%emt 0:00:03]} Nxc5 {[%emt 0:00:19]} 15. dxc5 {[%emt 0:00:29]} Qe7 {[%emt 0:00:16]} 16. Rfd1 {[%emt 0:00:08]} Rfd8 {[%emt 0:00:13]} 17. a3 {[%emt 0:00:06]} a5 {[%emt 0:00:11]} 18. b3 {[%emt 0:00:06]} g6 {[%emt 0:01:24]} 19. Qb2 {[%emt 0:00:09]} d4 {[%emt 0:00:12]} 20. exd4 {[%emt 0:00:05]} Rxd4 {[%emt 0:00:02]} 21. Qc3 {[%emt 0:02:55]} Rad8 {[%emt 0:00:29]} 22. Be2 {[%emt 0:00:03]} Qg5 {[%emt 0:03:35]} 23. g3 {[%emt 0:03:22]} R8d5 {[%emt 0:06:19]} 24. Rxd4 {[%emt 0:01:31]} Nxd4 {[%emt 0:00:02]} 25. Bd1 {[%emt 0:00:03]} Qd8 {[%emt 0:02:11]} 26. Bf3 {[%emt 0:02:01]} Rf5 {[%emt 0:01:00]} 27. Rd1 {[%emt 0:00:39]} e5 {[%emt 0:01:10]} 28. Qe3 {[%emt 0:00:38]} Rxf3 {[%emt 0:00:55]} 29. Qxe5 {[%emt 0:04:12]} Rxg3+ {[%emt 0:00:01]} 30. Kh1 {[%emt 0:01:12]} Rg4 {[%emt 0:00:00]} 31. f4 {[%emt 0:00:01]} Rxf4 {[%emt 0:00:01]} 32. Qxf4 {[%emt 0:00:12]} Qd5+ {[%emt 0:00:01]} 33. Kg1 {[%emt 0:00:03]} Ne2+ {[%emt 0:00:01]} 34. Kf2 {[%emt 0:00:04]} Nxf4 {[%emt 0:00:01]} 0-1

[Event "RUS-chT Rapid Men 2018"]
[Site "Sochi"]
[Date "2018.10.08"]
[Round "2"]
[White "Kharitonov, Egor"]
[Black "Ivlev, Aleksey"]
[Result "0-1"]
[ECO "D11"]
[WhiteElo "2387"]
[BlackElo "2326"]
[Annotator "NA"]
[PlyCount "96"]
[EventDate "2018.10.05"]
[EventType "swiss"]
[EventCountry "RUS"]
[SourceTitle "playchess.com"]
[Source "ChessBase"]
[SourceQuality "1"]
[TimeControl "900+10"]

1. d4 {[%emt 0:00:00]} d5 {[%emt 0:00:00]} 2. c4 {[%emt 0:00:00]} c6 {[%emt 0:00:00]} 3. Nf3 {[%emt 0:00:00]} Nf6 {[%emt 0:00:00]} 4. Qc2 {[%emt 0:00:00]} g6 {[%emt 0:00:06]} 5. Bf4 {[%emt 0:00:00]} Bg7 {[%emt 0:00:02]} 6. e3 {[%emt 0:00:00]} O-O {[%emt 0:00:04]} 7. h3 {[%emt 0:00:15]} a6 {[%emt 0:00:09]} 8. Nc3 {[%emt 0:00:48]} b5 {[%emt 0:00:26]} 9. cxd5 {[%emt 0:00:14]} cxd5 {[%emt 0:00:09]} 10. Be2 {[%emt 0:00:02]} Bf5 {[%emt 0:00:17]} 11. Qb3 {[%emt 0:00:05]} Nc6 {[%emt 0:00:04]} 12. O-O {[%emt 0:00:09]} Na5 {[%emt 0:01:41]} 13. Qd1 {[%emt 0:01:26]} Nc4 {[%emt 0:00:07]} 14. b3 {[%emt 0:00:03]} Nb6 {[%emt 0:00:23]} 15. a3 {[%emt 0:01:27]} Qd7 {[%emt 0:01:31]} 16. Ne5 {[%emt 0:00:06]} Qb7 {[%emt 0:00:02]} 17. Rc1 {[%emt 0:00:14]} Rfc8 {[%emt 0:00:21]} 18. Nd3 {[%emt 0:01:36]} Bxd3 {[%emt 0:00:13]} 19. Bxd3 {[%emt 0:00:03]} e6 {[%emt 0:00:20]} 20. Be5 {[%emt 0:01:19]} Nbd7 {[%emt 0:01:21]} 21. Bd6 {[%emt 0:00:04]} Rc6 {[%emt 0:00:26]} 22. Be7 {[%emt 0:00:49]} Re8 {[%emt 0:00:51]} 23. Bb4 {[%emt 0:00:46]} Rec8 {[%emt 0:01:37]} 24. Qd2 {[%emt 0:00:12]} Bf8 {[%emt 0:02:11]} 25. Ne2 {[%emt 0:03:21]} Rxc1 {[%emt 0:00:22]} 26. Rxc1 {[%emt 0:00:02]} Rxc1+ {[%emt 0:00:01]} 27. Nxc1 {[%emt 0:00:05]} Bxb4 {[%emt 0:00:03]} 28. Qxb4 {[%emt 0:00:02]} Qc7 {[%emt 0:01:01]} 29. Ne2 {[%emt 0:00:14]} Kg7 {[%emt 0:00:36]} 30. g3 {[%emt 0:01:23]} e5 {[%emt 0:00:02]} 31. Qc3 {[%emt 0:00:49]} Qd6 {[%emt 0:00:14]} 32. a4 {[%emt 0:01:39]} b4 {[%emt 0:00:07]} 33. Qc8 {[%emt 0:00:02]} a5 {[%emt 0:00:01]} 34. Bb5 {[%emt 0:00:04]} exd4 {[%emt 0:00:44]} 35. Nxd4 {[%emt 0:00:04]} Nc5 {[%emt 0:00:05]} 36. Kg2 {[%emt 0:00:40]} Nfe4 {[%emt 0:00:11]} 37. h4 {[%emt 0:00:52]} Nxf2 {[%emt 0:00:17]} 38. Kxf2 {[%emt 0:00:14]} Ne4+ {[%emt 0:00:02]} 39. Ke2 {[%emt 0:00:48]} Qxg3 {[%emt 0:00:04]} 40. Kd3 {[%emt 0:00:32]} Qe1 {[%emt 0:00:55]} 41. Qc2 {[%emt 0:00:09]} Nf2+ {[%emt 0:00:06]} 42. Qxf2 {[%emt 0:00:15]} Qxf2 {[%emt 0:00:02]} 43. Nc6 {[%emt 0:00:08]} Qxh4 {[%emt 0:00:14]} 44. Nxa5 {[%emt 0:00:01]} Qe4+ {[%emt 0:00:02]} 45. Kd2 {[%emt 0:00:02]} h5 {[%emt 0:00:11]} 46. Nc6 {[%emt 0:00:04]} h4 {[%emt 0:00:16]} 47. Bf1 {[%emt 0:00:13]} Qf5 {[%emt 0:00:13]} 48. Ke2 {[%emt 0:00:08]} Qc2+ {[%emt 0:00:02]} 0-1

[Event "RUS-chT Rapid Men 2018"]
[Site "Sochi"]
[Date "2018.10.08"]
[Round "2"]
[White "Derjabin, Ilja"]
[Black "Remizov, Yaroslav"]
[Result "1-0"]
[ECO "D01"]
[WhiteElo "2345"]
[BlackElo "2315"]
[Annotator "NA"]
[PlyCount "81"]
[EventDate "2018.10.05"]
[EventType "swiss"]
[EventCountry "RUS"]
[SourceTitle "playchess.com"]
[Source "ChessBase"]
[SourceQuality "1"]
[TimeControl "900+10"]

1. d4 {[%emt 0:00:00]} d5 {[%emt 0:00:00]} 2. Nc3 {[%emt 0:00:00]} Nf6 {[%emt 0:00:12]} 3. Bg5 {[%emt 0:00:00]} c6 {[%emt 0:01:08]} 4. f3 {[%emt 0:00:32]} Qb6 {[%emt 0:01:12]} 5. Qd2 {[%emt 0:00:17]} h6 {[%emt 0:01:38]} 6. Bh4 {[%emt 0:00:17]} Bf5 {[%emt 0:01:02]} 7. O-O-O {[%emt 0:02:23]} Nbd7 {[%emt 0:00:15]} 8. g4 {[%emt 0:02:04]} Bh7 {[%emt 0:00:20]} 9. e3 {[%emt 0:00:08]} e5 {[%emt 0:01:27]} 10. Bd3 {[%emt 0:00:18]} Bxd3 {[%emt 0:01:44]} 11. Qxd3 {[%emt 0:00:02]} Bb4 {[%emt 0:00:16]} 12. a3 {[%emt 0:00:22]} e4 {[%emt 0:00:39]} 13. Qd2 {[%emt 0:01:34]} Bxc3 {[%emt 0:00:58]} 14. Qxc3 {[%emt 0:00:02]} exf3 {[%emt 0:01:00]} 15. Bxf6 {[%emt 0:00:37]} Nxf6 {[%emt 0:00:19]} 16. Nxf3 {[%emt 0:00:04]} Ne4 {[%emt 0:00:15]} 17. Qe1 {[%emt 0:00:01]} O-O-O {[%emt 0:00:19]} 18. Rf1 {[%emt 0:00:12]} f6 {[%emt 0:00:17]} 19. Rd3 {[%emt 0:00:11]} h5 {[%emt 0:00:58]} 20. gxh5 {[%emt 0:01:21]} Rxh5 {[%emt 0:00:02]} 21. h4 {[%emt 0:00:06]} Qc7 {[%emt 0:00:41]} 22. Rg1 {[%emt 0:00:18]} Rf5 {[%emt 0:01:03]} 23. Qe2 {[%emt 0:00:06]} g5 {[%emt 0:00:51]} 24. hxg5 {[%emt 0:00:05]} fxg5 {[%emt 0:00:01]} 25. Rdd1 {[%emt 0:01:00]} Kb8 {[%emt 0:01:19]} 26. Ne5 {[%emt 0:00:20]} Rf2 {[%emt 0:00:17]} 27. Qg4 {[%emt 0:00:01]} c5 {[%emt 0:00:38]} 28. Rdf1 {[%emt 0:00:44]} Rxc2+ {[%emt 0:00:25]} 29. Kxc2 {[%emt 0:00:11]} cxd4+ {[%emt 0:00:01]} 30. Kd3 {[%emt 0:00:15]} dxe3 {[%emt 0:00:12]} 31. Nd7+ {[%emt 0:02:48]} Rxd7 {[%emt 0:00:19]} 32. Rf8+ Rd8 33. Rxd8+ {[%emt 0:00:03]} Qxd8 34. Qf5 a6 {[%emt 0:00:36]} 35. Qe5+ {[%emt 0:00:04]} Ka7 {[%emt 0:00:03]} 36. Qd4+ {[%emt 0:00:04]} Qb6 {[%emt 0:00:09]} 37. Kxe3 {[%emt 0:00:19]} a5 {[%emt 0:00:21]} 38. Qxb6+ Kxb6 39. Kd4 {[%emt 0:00:24]} Kc6 {[%emt 0:00:00]} 40. Rh1 {[%emt 0:00:01]} Nc5 {[%emt 0:00:30]} 41. Rc1 {[%emt 0:00:13]} 1-0

[Event "RUS-chT Rapid Men 2018"]
[Site "Sochi"]
[Date "2018.10.08"]
[Round "2"]
[White "Uzhva, Andrey"]
[Black "Pingin, Artem"]
[Result "1-0"]
[ECO "D02"]
[WhiteElo "2270"]
[BlackElo "1981"]
[Annotator "NA"]
[PlyCount "105"]
[EventDate "2018.10.05"]
[EventType "swiss"]
[EventCountry "RUS"]
[SourceTitle "playchess.com"]
[Source "ChessBase"]
[SourceQuality "1"]
[TimeControl "900+10"]

1. Nf3 {[%emt 0:00:00]} d5 {[%emt 0:00:00]} 2. d4 {[%emt 0:00:00]} Nf6 {[%emt 0:00:00]} 3. g3 {[%emt 0:00:00]} e6 {[%emt 0:00:00]} 4. Bg2 {[%emt 0:00:00]} Be7 {[%emt 0:00:00]} 5. c4 {[%emt 0:00:00]} O-O {[%emt 0:00:01]} 6. O-O {[%emt 0:00:02]} c6 {[%emt 0:00:02]} 7. Nc3 {[%emt 0:00:02]} Nbd7 {[%emt 0:00:28]} 8. b3 {[%emt 0:00:02]} b6 {[%emt 0:00:19]} 9. Qc2 {[%emt 0:00:03]} Bb7 {[%emt 0:00:05]} 10. Rd1 {[%emt 0:00:04]} Rc8 {[%emt 0:00:13]} 11. e4 {[%emt 0:00:02]} dxe4 {[%emt 0:01:11]} 12. Nxe4 {[%emt 0:00:04]} c5 {[%emt 0:00:08]} 13. Nxf6+ {[%emt 0:00:13]} Bxf6 {[%emt 0:00:02]} 14. Ng5 {[%emt 0:00:10]} Bxg5 {[%emt 0:00:27]} 15. Bxb7 {[%emt 0:00:02]} Rc7 {[%emt 0:00:12]} 16. dxc5 {[%emt 0:00:19]} Bxc1 {[%emt 0:01:09]} 17. Raxc1 {[%emt 0:01:25]} Rxb7 {[%emt 0:01:06]} 18. c6 {[%emt 0:00:06]} Rc7 {[%emt 0:00:14]} 19. Rxd7 {[%emt 0:00:28]} Rxd7 {[%emt 0:00:02]} 20. cxd7 {[%emt 0:00:01]} Qxd7 {[%emt 0:00:05]} 21. Rd1 {[%emt 0:00:03]} Qc6 {[%emt 0:00:18]} 22. Qd3 {[%emt 0:00:37]} h6 {[%emt 0:03:21]} 23. Qd7 {[%emt 0:01:20]} Qf3 {[%emt 0:00:31]} 24. Rc1 {[%emt 0:06:22]} Ra8 {[%emt 0:02:07]} 25. h4 {[%emt 0:03:25]} Qe2 {[%emt 0:00:55]} 26. Qb7 {[%emt 0:00:23]} Rd8 {[%emt 0:00:48]} 27. Qxa7 {[%emt 0:00:02]} Rd2 {[%emt 0:00:03]} 28. Qxb6 {[%emt 0:00:04]} Rxa2 {[%emt 0:00:14]} 29. Qe3 {[%emt 0:02:06]} Qxe3 {[%emt 0:01:26]} 30. fxe3 {[%emt 0:00:01]} Rb2 {[%emt 0:00:04]} 31. Rc3 {[%emt 0:00:05]} Kf8 {[%emt 0:00:02]} 32. c5 {[%emt 0:00:33]} Ke8 {[%emt 0:00:03]} 33. c6 {[%emt 0:00:02]} Kd8 {[%emt 0:00:01]} 34. Kf1 {[%emt 0:00:06]} Kc7 {[%emt 0:00:06]} 35. Ke1 {[%emt 0:00:27]} f6 {[%emt 0:02:38]} 36. Kd1 {[%emt 0:00:02]} g5 {[%emt 0:00:01]} 37. Kc1 {[%emt 0:00:15]} Rf2 {[%emt 0:00:16]} 38. b4 {[%emt 0:00:15]} Rf5 {[%emt 0:00:06]} 39. Kc2 {[%emt 0:00:25]} gxh4 {[%emt 0:00:35]} 40. gxh4 {[%emt 0:00:01]} Rb5 {[%emt 0:00:48]} 41. Kb3 {[%emt 0:00:04]} Rh5 {[%emt 0:00:08]} 42. Rc4 {[%emt 0:00:20]} Re5 {[%emt 0:00:02]} 43. Ka4 {[%emt 0:01:10]} Rxe3 {[%emt 0:01:18]} 44. b5 {[%emt 0:00:01]} Re1 {[%emt 0:00:19]} 45. b6+ {[%emt 0:00:04]} Kxb6 {[%emt 0:00:01]} 46. c7 {[%emt 0:00:03]} Ra1+ {[%emt 0:00:01]} 47. Kb3 {[%emt 0:00:01]} Ra8 {[%emt 0:00:16]} 48. c8=Q {[%emt 0:00:03]} Rxc8 {[%emt 0:00:01]} 49. Rxc8 {[%emt 0:00:01]} f5 {[%emt 0:00:03]} 50. Kc4 {[%emt 0:00:04]} e5 {[%emt 0:00:02]} 51. Kd5 {[%emt 0:00:01]} e4 {[%emt 0:00:01]} 52. Kd4 {[%emt 0:00:01]} Kb5 {[%emt 0:00:04]} 53. Rh8 {[%emt 0:00:06]} 1-0

[Event "RUS-chT Rapid Men 2018"]
[Site "Sochi"]
[Date "2018.10.08"]
[Round "2"]
[White "Nuristani, Iman"]
[Black "Dilmukhametov, Artur"]
[Result "1/2-1/2"]
[ECO "D10"]
[WhiteElo "2242"]
[BlackElo "2353"]
[Annotator "NA RC"]
[PlyCount "147"]
[EventDate "2018.10.05"]
[EventType "swiss"]
[EventCountry "RUS"]
[SourceTitle "playchess.com"]
[Source "ChessBase"]
[SourceQuality "1"]
[TimeControl "900+10"]

1. d4 {[%emt 0:00:00]} d5 {[%emt 0:00:00]} 2. c4 {[%emt 0:00:00]} c6 {[%emt 0:00:00]} 3. cxd5 {[%emt 0:00:00]} cxd5 {[%emt 0:00:00]} 4. Bg5 {[%emt 0:00:00]} Qb6 {[%emt 0:00:14]} 5. Nc3 {[%emt 0:00:00]} e6 {[%emt 0:00:05]} 6. Qd2 {[%emt 0:00:43]} Nf6 {[%emt 0:00:28]} 7. Bxf6 {[%emt 0:00:05]} gxf6 {[%emt 0:00:01]} 8. e3 {[%emt 0:00:38]} Nc6 {[%emt 0:01:49]} 9. Nf3 {[%emt 0:01:09]} Bd7 {[%emt 0:01:26]} 10. Bd3 {[%emt 0:01:12]} Na5 {[%emt 0:00:55]} 11. Qe2 {[%emt 0:02:28]} Nc4 {[%emt 0:01:55]} 12. Bxc4 {[%emt 0:01:35]} dxc4 {[%emt 0:00:02]} 13. O-O {[%emt 0:00:02]} Rc8 {[%emt 0:01:49]} 14. e4 {[%emt 0:00:10]} Bg7 {[%emt 0:00:57]} 15. e5 {[%emt 0:03:44]} O-O {[%emt 0:01:21]} 16. Ne4 {[%emt 0:00:49]} fxe5 {[%emt 0:00:05]} 17. dxe5 {[%emt 0:00:04]} Bc6 {[%emt 0:01:03]} 18. Ng3 {[%emt 0:02:08]} Bxf3 {[%emt 0:02:46]} 19. gxf3 {[%emt 0:00:01]} Qd4 {[%emt 0:00:12]} 20. Rfe1 {[%emt 0:01:50]} Rc5 {[%emt 0:00:09]} 21. Qe4 {[%emt 0:00:52]} Rxe5 {[%emt 0:01:48]} 22. Qxb7 {[%emt 0:00:01]} Rxe1+ {[%emt 0:00:01]} 23. Rxe1 {[%emt 0:00:01]} Qxb2 {[%emt 0:00:02]} 24. Qc6 {[%emt 0:00:35]} Qxa2 {[%emt 0:00:38]} 25. Ne4 {[%emt 0:00:04]} Qb3 {[%emt 0:01:01]} 26. Kg2 {[%emt 0:00:05]} c3 {[%emt 0:00:06]} 27. Re3 {[%emt 0:00:24]} Qd5 {[%emt 0:00:11]} 28. Qc7 {[%emt 0:00:01]} Kh8 {[%emt 0:00:14]} 29. Nxc3 {[%emt 0:00:04]} Qg5+ {[%emt 0:00:03]} 30. Kh1 {[%emt 0:00:14]} Bd4 {[%emt 0:00:02]} 31. Ne4 {[%emt 0:00:08]} Qf5 {[%emt 0:00:16]} 32. Qd6 {[%emt 0:00:06]} Bg7 {[%emt 0:00:05]} 33. Ng3 {[%emt 0:00:02]} Qb5 {[%emt 0:00:10]} 34. Kg2 {[%emt 0:00:02]} h5 {[%emt 0:00:10]} 35. Rc3 {[%emt 0:00:16]} Qg5 {[%emt 0:00:22]} 36. Rc5 {[%emt 0:00:02]} e5 {[%emt 0:00:00]} 37. h4 {[%emt 0:00:07]} Qxh4 {[%emt 0:00:09]} 38. Rxe5 {[%emt 0:00:02]} f5 {[%emt 0:00:31]} 39. Re7 {[%emt 0:01:13]} Qg5 {[%emt 0:00:04]} 40. Re6 {[%emt 0:00:07]} Rf6 {[%emt 0:00:13]} 41. Rxf6 {[%emt 0:00:02]} Bxf6 {[%emt 0:00:01]} 42. Qf8+ {[%emt 0:00:01]} Kh7 {[%emt 0:00:02]} 43. Qf7+ {[%emt 0:00:01]} Bg7 {[%emt 0:00:03]} 44. Kh2 {[%emt 0:00:47]} Qh4+ {[%emt 0:00:13]} 45. Kg2 {[%emt 0:00:01]} Qg5 {[%emt 0:00:03]} 46. Kh2 {[%emt 0:00:01]} Qg6 {[%emt 0:00:12]} 47. Qxa7 {[%emt 0:00:18]} h4 {[%emt 0:00:02]} 48. Ne2 {[%emt 0:00:02]} Qd6+ {[%emt 0:00:37]} 49. Kg2 {[%emt 0:00:07]} Qd1 {[%emt 0:00:19]} 50. Ng1 {[%emt 0:00:10]} Qd6 {[%emt 0:00:11]} 51. Nh3 {[%emt 0:00:09]} Qg6+ {[%emt 0:00:04]} 52. Kh2 {[%emt 0:00:05]} Qd6+ {[%emt 0:00:02]} 53. Kg2 {[%emt 0:00:01]} Kg6 {[%emt 0:00:03]} 54. Qe3 {[%emt 0:00:04]} Bh6 {[%emt 0:00:02]} 55. Qe8+ {[%emt 0:00:02]} Kf6 {[%emt 0:00:04]} 56. Qh5 {[%emt 0:00:03]} Qd2 {[%emt 0:00:31]} 57. Qxh4+ Ke6 {[%emt 0:00:08]} 58. Qh5 {[%emt 0:00:20]} Kf6 {[%emt 0:00:10]} 59. Qh4+ {[%emt 0:00:09]} Kg6 {[%emt 0:00:07]} 60. Qc4 {[%emt 0:00:04]} Qd8 {[%emt 0:00:05]} 61. Qe6+ {[%emt 0:00:07]} Qf6 {[%emt 0:00:01]} 62. Qxf6+ {[%emt 0:00:03]} Kxf6 {[%emt 0:00:01]} 63. f4 {[%emt 0:00:02]} Ke6 {[%emt 0:00:28]} 64. Kf3 {[%emt 0:00:03]} Kd5 {[%emt 0:00:20]} 65. Ng5 {[%emt 0:00:01]} Bg7 {[%emt 0:00:01]} 66. Nf7 {[%emt 0:00:09]} Bd4 {[%emt 0:00:02]} 67. Ng5 {[%emt 0:00:07]} Bc5 {[%emt 0:00:03]} 68. Nh3 {[%emt 0:00:02]} Bd4 {[%emt 0:00:03]} 69. Ng1 {[%emt 0:00:01]} Bf6 {[%emt 0:00:05]} 70. Ne2 {[%emt 0:00:01]} Ke6 {[%emt 0:00:09]} 71. Ke3 {[%emt 0:00:05]} Kd5 {[%emt 0:00:03]} 72. Ng3 {[%emt 0:00:09]} Bd4+ {[%emt 0:00:06]} 73. Kf3 {[%emt 0:00:05]} Ke6 {[%emt 0:00:02]} 74. Ne2 {[%emt 0:00:15] Ke5} 1/2-1/2

[Event "RUS-chT Rapid Men 2018"]
[Site "Sochi"]
[Date "2018.10.08"]
[Round "2"]
[White "Kretov, Evgenij"]
[Black "Zhakamukhov, Eduard"]
[Result "1-0"]
[ECO "E73"]
[WhiteElo "2219"]
[BlackElo "2068"]
[Annotator "NA"]
[PlyCount "95"]
[EventDate "2018.10.05"]
[EventType "swiss"]
[EventCountry "RUS"]
[SourceTitle "playchess.com"]
[Source "ChessBase"]
[SourceQuality "1"]
[TimeControl "900+10"]

1. d4 {[%emt 0:00:00]} Nf6 {[%emt 0:00:00]} 2. c4 {[%emt 0:00:00]} g6 {[%emt 0:00:00]} 3. Nc3 {[%emt 0:00:00]} Bg7 {[%emt 0:00:00]} 4. e4 {[%emt 0:00:00]} d6 {[%emt 0:00:00]} 5. Be2 {[%emt 0:00:00]} O-O {[%emt 0:00:00]} 6. Bg5 {[%emt 0:00:00]} h6 {[%emt 0:00:00]} 7. Be3 {[%emt 0:00:00]} e5 {[%emt 0:00:00]} 8. d5 {[%emt 0:00:00]} a5 {[%emt 0:00:00]} 9. Qd2 {[%emt 0:00:06]} Kh7 {[%emt 0:00:00]} 10. O-O-O {[%emt 0:00:39]} Na6 {[%emt 0:00:41]} 11. h4 {[%emt 0:00:23]} Nc5 {[%emt 0:00:29]} 12. f3 {[%emt 0:00:04]} Nh5 {[%emt 0:00:43]} 13. g4 {[%emt 0:00:10]} Ng3 {[%emt 0:00:34]} 14. Rh3 {[%emt 0:00:22]} Nxe2+ {[%emt 0:00:59]} 15. Ngxe2 {[%emt 0:00:02]} f5 {[%emt 0:01:04]} 16. h5 {[%emt 0:00:09]} f4 {[%emt 0:02:03]} 17. hxg6+ {[%emt 0:00:34]} Kxg6 {[%emt 0:00:01]} 18. Bf2 {[%emt 0:00:39]} Bf6 {[%emt 0:00:41]} 19. Kc2 {[%emt 0:00:40]} Bd7 {[%emt 0:01:24]} 20. Nc1 {[%emt 0:00:31]} Na4 {[%emt 0:01:57]} 21. Nd3 {[%emt 0:01:19]} Nxc3 {[%emt 0:02:04]} 22. Qxc3 {[%emt 0:00:04]} b5 {[%emt 0:00:12]} 23. Kd2 {[%emt 0:02:49]} c5 {[%emt 0:01:04]} 24. dxc6 {[%emt 0:00:38]} Bxc6 {[%emt 0:00:10]} 25. c5 {[%emt 0:00:27]} b4 {[%emt 0:01:08]} 26. Qc2 {[%emt 0:00:09]} Kg7 {[%emt 0:01:33]} 27. cxd6 {[%emt 0:00:42]} Rc8 {[%emt 0:00:58]} 28. Rc1 {[%emt 0:02:06]} Bb7 {[%emt 0:01:12]} 29. Bc5 {[%emt 0:00:47]} Rf7 {[%emt 0:00:28]} 30. Qc4 {[%emt 0:00:18]} Rc6 {[%emt 0:00:14]} 31. Rch1 {[%emt 0:00:25]} Bg5 {[%emt 0:00:16]} 32. Qe6 {[%emt 0:00:36]} Rf6 {[%emt 0:00:07]} 33. Qxe5 {[%emt 0:00:15]} Ba6 {[%emt 0:00:07]} 34. Rc1 {[%emt 0:01:03]} Bxd3 {[%emt 0:00:15]} 35. Kxd3 {[%emt 0:00:01]} Kg6 {[%emt 0:00:11]} 36. Rhh1 {[%emt 0:01:00]} Qd7 {[%emt 0:00:12]} 37. Ke2 {[%emt 0:00:18]} Rc8 {[%emt 0:00:04]} 38. Bd4 {[%emt 0:00:16]} Rxc1 {[%emt 0:00:12]} 39. Rxc1 {[%emt 0:00:02]} Rxd6 {[%emt 0:00:04]} 40. Qf5+ {[%emt 0:00:11]} Qxf5 {[%emt 0:00:01]} 41. gxf5+ {[%emt 0:00:04]} Kf7 {[%emt 0:00:09]} 42. Rc7+ {[%emt 0:00:01]} Ke8 {[%emt 0:00:06]} 43. Bc5 {[%emt 0:00:08]} Rd7 {[%emt 0:00:09]} 44. Rc8+ {[%emt 0:00:07]} Kf7 {[%emt 0:00:10]} 45. e5 {[%emt 0:00:31]} Rd5 {[%emt 0:00:08]} 46. Bd6 {[%emt 0:00:40]} Bf6 {[%emt 0:00:31]} 47. Rf8+ {[%emt 0:00:02]} Kg7 {[%emt 0:00:02]} 48. Rxf6 {[%emt 0:00:01]} 1-0

[Event "RUS-chT Rapid Men 2018"]
[Site "Sochi"]
[Date "2018.10.08"]
[Round "2"]
[White "Shkurkin, Andrey"]
[Black "Kuzmin, Roman"]
[Result "1-0"]
[ECO "D90"]
[WhiteElo "2201"]
[BlackElo "2127"]
[Annotator "NA"]
[PlyCount "41"]
[EventDate "2018.10.05"]
[EventType "swiss"]
[EventCountry "RUS"]
[SourceTitle "playchess.com"]
[Source "ChessBase"]
[SourceQuality "1"]
[TimeControl "900+10"]

1. d4 {[%emt 0:00:00]} Nf6 {[%emt 0:00:00]} 2. c4 {[%emt 0:00:00]} g6 {[%emt 0:00:00]} 3. Nc3 {[%emt 0:00:00]} d5 {[%emt 0:00:00]} 4. Nf3 {[%emt 0:00:00]} Bg7 {[%emt 0:00:00]} 5. cxd5 {[%emt 0:00:02]} Nxd5 {[%emt 0:00:00]} 6. Bg5 {[%emt 0:00:02]} O-O {[%emt 0:00:29]} 7. Rc1 {[%emt 0:00:37]} Nxc3 {[%emt 0:01:00]} 8. bxc3 {[%emt 0:00:22]} c5 {[%emt 0:01:05]} 9. e3 {[%emt 0:00:07]} cxd4 {[%emt 0:00:14]} 10. cxd4 {[%emt 0:00:23]} Bg4 {[%emt 0:00:03]} 11. Bh4 {[%emt 0:00:31]} Qa5+ {[%emt 0:00:35]} 12. Qd2 {[%emt 0:00:35]} Qh5 {[%emt 0:00:05]} 13. Bxe7 {[%emt 0:04:59]} Re8 {[%emt 0:00:04]} 14. Rc5 {[%emt 0:01:37]} f5 {[%emt 0:01:20]} 15. Bc4+ {[%emt 0:00:26]} Kh8 {[%emt 0:00:01]} 16. Ne5 {[%emt 0:01:58]} Bxe5 {[%emt 0:09:15]} 17. dxe5 {[%emt 0:00:54]} Rf8 {[%emt 0:02:48]} 18. Bf6+ {[%emt 0:00:23]} Rxf6 {[%emt 0:00:06]} 19. Qd8+ {[%emt 0:00:02]} Kg7 {[%emt 0:00:07]} 20. Qxf6+ {[%emt 0:00:12]} Kh6 {[%emt 0:00:02]} 21. Qf8+ {[%emt 0:00:09]} 1-0